fUST/lending_fUST_20240227
["ID","MTS","AMOUNT","RATE_DAILY","PERIOD"]
[315369722,1708992638296,-500.0,0.00019178,2]
[315369723,1708992638305,-500.0,0.00019178,2]
[315369724,1708992638314,-500.0,0.00019178,2]
[315369725,1708992638322,-500.0,0.00019178,2]
[315369726,1708992638331,-501.41045826,0.00019178,2]
[315369727,1708992638342,-500.0,0.00019178,2]
[315369728,1708992638351,-451.30512983,0.00019178,2]
[315369729,1708992638359,-500.0,0.00019178,2]
[315369730,1708992638369,-500.0,0.00019178,2]
[315369731,1708992638380,-500.0,0.00019178,2]
[315369732,1708992638389,-500.0,0.00019178,2]
[315369733,1708992638398,-500.0,0.00019178,2]
[315369734,1708992638407,-500.0,0.00019178,2]
[315369735,1708992638418,-500.0,0.00019178,2]
[315369736,1708992638427,-451.87442518,0.00019178,2]
[315369737,1708992638435,-501.16512852,0.00019178,2]
[315369739,1708992638445,-500.0,0.00019178,2]
[315369741,1708992638454,-500.0,0.00019178,2]
[315369743,1708992638463,-500.0,0.00019178,2]
[315369745,1708992638473,-500.0,0.00019178,2]
[315369747,1708992638483,-500.0,0.00019178,2]
[315369749,1708992638492,-500.0,0.00019178,2]
[315369751,1708992638501,-500.0,0.00019178,2]
[315369753,1708992638510,-432.63229669,0.00019178,2]
[315369755,1708992638521,-3226.67,0.00019178,2]
[315369757,1708992638530,-536.28,0.00019178,2]
[315369759,1708992638539,-601.83460681,0.00019178,2]
[315369761,1708992638548,-500.0,0.00019178,2]
[315369763,1708992638557,-501.82744386,0.00019178,2]
[315369765,1708992638566,-511.74886625,0.00019178,2]
[315369767,1708992638575,-1303.69,0.00019178,2]
[315369769,1708992638585,-500.0,0.00019178,2]
[315369771,1708992638594,-1352.38,0.00019178,2]
[315369773,1708992638603,-500.91762408,0.00019178,2]
[315369775,1708992638612,-500.0,0.00019178,2]
[315369777,1708992638621,-500.0,0.00019178,2]
[315369779,1708992638630,-500.0,0.00019178,2]
[315369781,1708992638639,-2042.42,0.00019178,2]
[315369783,1708992638649,-500.0,0.00019178,2]
[315369785,1708992638658,-502.47770452,0.00019178,2]
[315369787,1708992638667,-500.65752268,0.00019178,2]
[315369789,1708992638676,-500.0,0.00019178,2]
[315369791,1708992638687,-156.1005894,0.00019178,2]
[315369793,1708992638696,-582.28209769,0.00019178,2]
[315369795,1708992638706,-500.32473079,0.00019178,2]
[315369797,1708992638715,-197.7493803,0.00019178,2]
[315369799,1708992638724,-500.0,0.00019178,2]
[315369801,1708992638733,-502.47764759,0.00019178,2]
[315369803,1708992638742,-616.16147576,0.00019178,2]
[315369805,1708992638751,-500.0,0.00019178,2]
[315369807,1708992638761,-500.0,0.00019178,2]
[315369809,1708992638770,-500.0,0.00019178,2]
[315369821,1708992638872,-752.08,0.00019178,2]
[315369823,1708992638881,-527.74951966,0.00019178,2]
[315369825,1708992638891,-503.11301008,0.00019178,2]
[315369827,1708992638900,-500.0,0.00019178,2]
[315369829,1708992638909,-500.0,0.00019178,2]
[315369831,1708992638918,-500.0,0.00019178,2]
[315369833,1708992638928,-500.0,0.00019178,2]
[315369835,1708992638938,-500.0,0.00019178,2]
[315369837,1708992638951,-501.8316353,0.00019178,2]
[315369838,1708992638960,-481.7489262,0.00019178,2]
[315369839,1708992638970,-500.0,0.00019178,2]
[315369840,1708992638979,-501.07626602,0.00019178,2]
[315369841,1708992638989,-500.0,0.00019178,2]
[315369842,1708992638998,-500.0,0.00019178,2]
[315369843,1708992639007,-500.0,0.00019178,2]
[315369844,1708992639016,-504.14747421,0.00019178,2]
[315369845,1708992639027,-569.23170504,0.00019178,2]
[315369846,1708992639038,-500.0,0.00019178,2]
[315369847,1708992639047,-500.0,0.00019178,2]
[315369848,1708992639056,-500.0,0.00019178,2]
[315369849,1708992639066,-519.20352539,0.00019178,2]
[315369850,1708992639075,-500.0,0.00019178,2]
[315369851,1708992639084,-501.00129828,0.00019178,2]
[315369852,1708992639094,-500.0,0.00019178,2]
[315369853,1708992639103,-501.11769825,0.00019178,2]
[315369854,1708992639112,-500.0,0.00019178,2]
[315369855,1708992639122,-500.0,0.00019178,2]
[315369856,1708992639131,-500.0,0.00019178,2]
[315369857,1708992639140,-500.0,0.00019178,2]
[315369858,1708992639150,-500.0,0.00019178,2]
[315369859,1708992639159,-500.0,0.00019178,2]
[315369860,1708992639168,-500.0,0.00019178,2]
[315369861,1708992639178,-500.14357954,0.00019178,2]
[315369862,1708992639187,-500.0,0.00019178,2]
[315369863,1708992639197,-500.0,0.00019178,2]
[315369864,1708992639206,-500.0,0.00019178,2]
[315369865,1708992639215,-500.0,0.00019178,2]
[315369866,1708992639224,-500.0,0.00019178,2]
[315369867,1708992639234,-500.0,0.00019178,2]
[315369868,1708992639245,-615.71848017,0.00019178,2]
[315369869,1708992639254,-500.0,0.00019178,2]
[315369870,1708992639263,-500.0,0.00019178,2]
[315369871,1708992639273,-576.01,0.00019178,2]
[315369872,1708992639282,-500.0,0.00019178,2]
[315369873,1708992639291,-500.0,0.00019178,2]
[315369874,1708992639301,-500.0,0.00019178,2]
[315369875,1708992639310,-500.0,0.00019178,2]
[315369876,1708992639319,-500.0,0.00019178,2]
[315369877,1708992639328,-500.0,0.00019178,2]
[315369878,1708992639338,-504.45809868,0.00019178,2]
[315369879,1708992639347,-500.0,0.00019178,2]
[315369880,1708992639356,-500.0,0.00019178,2]
[315369881,1708992639366,-500.0,0.00019178,2]
[315369882,1708992639375,-500.0,0.00019178,2]
[315369883,1708992639384,-500.0,0.00019178,2]
[315369884,1708992639393,-500.0,0.00019178,2]
[315369885,1708992639404,-500.0,0.00019178,2]
[315369886,1708992639413,-500.0,0.00019178,2]
[315369887,1708992639422,-500.0,0.00019178,2]
[315369888,1708992639431,-500.0,0.00019178,2]
[315369889,1708992639440,-500.0,0.00019178,2]
[315369890,1708992639449,-500.0,0.00019178,2]
[315369891,1708992639458,-500.75121153,0.00019178,2]
[315369892,1708992639467,-500.0,0.00019178,2]
[315369893,1708992639476,-2198.83,0.00019178,2]
[315369894,1708992639486,-503.35756395,0.00019178,2]
[315369895,1708992639495,-500.0,0.00019178,2]
[315369896,1708992639504,-500.95156655,0.00019178,2]
[315369897,1708992639513,-500.0,0.00019178,2]
[315369898,1708992639523,-1625.24,0.00019178,2]
[315369899,1708992639532,-500.0,0.00019178,2]
[315369900,1708992639541,-500.0,0.00019178,2]
[315369901,1708992639550,-500.0,0.00019178,2]
[315369902,1708992639559,-500.0,0.00019178,2]
[315369903,1708992639568,-500.0,0.00019178,2]
[315369904,1708992639577,-500.0,0.00019178,2]
[315369905,1708992639586,-407.07496892,0.00019178,2]
[315369906,1708992639595,-631.67993521,0.00019178,2]
[315369907,1708992639604,-500.0,0.00019178,2]
[315369908,1708992639613,-1300.41,0.00019178,2]
[315369909,1708992639622,-500.0,0.00019178,2]
[315369910,1708992639632,-500.0,0.00019178,2]
[315369911,1708992639641,-500.0,0.00019178,2]
[315369912,1708992639650,-323.5389326,0.00019178,2]
[315369913,1708992639659,-500.0,0.00019178,2]
[315369914,1708992639668,-276.13419307,0.00019178,2]
[315369915,1708992639677,-500.0,0.00019178,2]
[315369916,1708992639686,-500.0,0.00019178,2]
[315369917,1708992639697,-500.0,0.00019178,2]
[315369918,1708992639706,-500.0,0.00019178,2]
[315369919,1708992639715,-500.0,0.00019178,2]
[315369920,1708992639724,-500.0,0.00019178,2]
[315369921,1708992639733,-647.66354051,0.00019178,2]
[315369922,1708992639742,-500.0,0.00019178,2]
[315369923,1708992639751,-500.0,0.00019178,2]
[315369924,1708992639760,-500.0,0.00019178,2]
[315369925,1708992639770,-500.0,0.00019178,2]
[315369926,1708992639779,-151.0,0.00019178,2]
[315369927,1708992639790,-500.0,0.00019178,2]
[315369928,1708992639800,-500.0,0.00019178,2]
[315369929,1708992639810,-500.0,0.00019178,2]
[315369930,1708992639821,-907.39,0.00019178,2]
[315369931,1708992639830,-500.0,0.00019178,2]
[315369932,1708992639839,-500.0,0.00019178,2]
[315369933,1708992639849,-500.0,0.00019178,2]
[315369934,1708992639859,-345.4447297,0.00019178,2]
[315369935,1708992639867,-500.0,0.00019178,2]
[315369936,1708992639876,-500.0,0.00019178,2]
[315369937,1708992639885,-500.0,0.00019178,2]
[315369938,1708992639895,-500.0,0.00019178,2]
[315369939,1708992639904,-500.0,0.00019178,2]
[315369940,1708992639913,-291.00212191,0.00019178,2]
[315369941,1708992639922,-500.0,0.00019178,2]
[315369942,1708992639931,-500.0,0.00019178,2]
[315369943,1708992639940,-500.0,0.00019178,2]
[315369944,1708992639952,-1106.32,0.00019178,2]
[315369946,1708992639961,-500.0,0.00019178,2]
[315369948,1708992639969,-3645.04,0.00019178,2]
[315369950,1708992639978,-1431.7,0.00019178,2]
[315369951,1708992639987,-500.0,0.00019178,2]
[315369953,1708992639996,-500.0,0.00019178,2]
[315369954,1708992640005,-865.79,0.00019178,2]
[315369955,1708992640014,-949.56,0.00019178,2]
[315369956,1708992640025,-500.0,0.00019178,2]
[315369957,1708992640034,-500.0,0.00019178,2]
[315369958,1708992640044,-659.55,0.00019178,2]
[315369959,1708992640052,-500.0,0.00019178,2]
[315369960,1708992640062,-500.0,0.00019178,2]
[315369961,1708992640071,-11020.62,0.00019178,2]
[315369962,1708992640081,-500.0,0.00019178,2]
[315369963,1708992640090,-500.0,0.00019178,2]
[315369964,1708992640099,-500.0,0.00019178,2]
[315369965,1708992640108,-500.0,0.00019178,2]
[315369966,1708992640117,-1715.46,0.00019178,2]
[315369967,1708992640126,-500.0,0.00019178,2]
[315369968,1708992640135,-500.0,0.00019178,2]
[315369969,1708992640144,-3554.77,0.00019178,2]
[315369970,1708992640153,-500.0,0.00019178,2]
[315369971,1708992640162,-500.0,0.00019178,2]
[315369972,1708992640171,-500.60959108,0.00019178,2]
[315369973,1708992640180,-500.0,0.00019178,2]
[315369974,1708992640190,-500.0,0.00019178,2]
[315369975,1708992640199,-500.0,0.00019178,2]
[315369976,1708992640208,-500.0,0.00019178,2]
[315369977,1708992640218,-513.67629886,0.00019178,2]
[315369978,1708992640227,-500.0,0.00019178,2]
[315369979,1708992640236,-500.91970631,0.00019178,2]
[315369980,1708992640246,-2853.03,0.00019178,2]
[315369981,1708992640256,-1894.86,0.00019178,2]
[315369982,1708992640265,-2054.17,0.00019178,2]
[315369983,1708992640276,-500.0,0.00019178,2]
[315369984,1708992640285,-500.0,0.00019178,2]
[315369985,1708992640294,-500.0,0.00019178,2]
[315369986,1708992640303,-500.0,0.00019178,2]
[315369987,1708992640313,-500.0,0.00019178,2]
[315369988,1708992640322,-500.0,0.00019178,2]
[315369989,1708992640331,-500.0,0.00019178,2]
[315369990,1708992640340,-500.0,0.00019178,2]
[315369991,1708992640349,-500.0,0.00019178,2]
[315369992,1708992640358,-1000.0,0.00019178,2]
[315369993,1708992640367,-17851.83,0.00019178,2]
[315369994,1708992640376,-1000.0,0.00019178,2]
[315369995,1708992640385,-500.0,0.00019178,2]
[315369996,1708992640394,-500.0,0.00019178,2]
[315369997,1708992640403,-500.54112541,0.00019178,2]
[315369998,1708992640413,-500.0,0.00019178,2]
[315369999,1708992640421,-500.0,0.00019178,2]
[315370000,1708992640431,-2560.44,0.00019178,2]
[315370001,1708992640440,-500.0,0.00019178,2]
[315370002,1708992640448,-543.31285923,0.00019178,2]
[315370003,1708992640458,-522.16106929,0.00019178,2]
[315370004,1708992640467,-500.0,0.00019178,2]
[315370005,1708992640476,-500.0,0.00019178,2]
[315370006,1708992640485,-500.0,0.00019178,2]
[315370007,1708992640495,-500.0,0.00019178,2]
[315370008,1708992640504,-500.0,0.00019178,2]
[315370009,1708992640513,-500.0,0.00019178,2]
[315370010,1708992640524,-500.0,0.00019178,2]
[315370011,1708992640533,-500.0,0.00019178,2]
[315370012,1708992640542,-500.0,0.00019178,2]
[315370013,1708992640551,-500.0,0.00019178,2]
[315370014,1708992640560,-500.0,0.00019178,2]
[315370015,1708992640569,-500.0,0.00019178,2]
[315370016,1708992640578,-521.26886401,0.00019178,2]
[315370017,1708992640587,-268.97832651,0.00019178,2]
[315370018,1708992640596,-500.0,0.00019178,2]
[315370019,1708992640605,-500.0,0.00019178,2]
[315370020,1708992640613,-500.40993125,0.00019178,2]
[315370021,1708992640622,-1573.46,0.00019178,2]
[315370022,1708992640631,-500.0,0.00019178,2]
[315370023,1708992640640,-500.0,0.00019178,2]
[315370024,1708992640650,-500.0,0.00019178,2]
[315370025,1708992640659,-500.0,0.00019178,2]
[315370026,1708992640668,-500.0,0.00019178,2]
[315370027,1708992640681,-500.0,0.00019178,2]
[315370028,1708992640691,-500.0,0.00019178,2]
[315370029,1708992640699,-500.0,0.00019178,2]
[315370030,1708992640709,-7320.56,0.00019178,2]
[315370031,1708992640718,-500.0,0.00019178,2]
[315370032,1708992640727,-500.0,0.00019178,2]
[315370033,1708992640735,-500.0,0.00019178,2]
[315370034,1708992640745,-500.0,0.00019178,2]
[315370035,1708992640754,-500.0,0.00019178,2]
[315370036,1708992640764,-3358.79,0.00019178,2]
[315370038,1708992640774,-515.24992095,0.00019178,2]
[315370040,1708992640783,-500.0,0.00019178,2]
[315370041,1708992640792,-500.0,0.00019178,2]
[315370043,1708992640801,-500.0,0.00019178,2]
[315370045,1708992640811,-500.0,0.00019178,2]
[315370046,1708992640819,-2076.84,0.00019178,2]
[315370047,1708992640829,-500.0,0.00019178,2]
[315370048,1708992640838,-618.09332603,0.00019178,2]
[315370050,1708992640847,-500.0,0.00019178,2]
[315370051,1708992640856,-500.0,0.00019178,2]
[315370053,1708992640865,-500.0,0.00019178,2]
[315370055,1708992640874,-626.77094743,0.00019178,2]
[315370057,1708992640883,-500.0,0.00019178,2]
[315370059,1708992640892,-500.0,0.00019178,2]
[315370061,1708992640901,-500.0,0.00019178,2]
[315370071,1708992640984,-500.36421082,0.00019178,2]
[315370073,1708992641002,-17303.09,0.00019178,2]
[315370075,1708992641011,-500.0,0.00019178,2]
[315370077,1708992641021,-861.33,0.00019178,2]
[315370079,1708992641031,-861.33,0.00019178,2]
[315370081,1708992641040,-861.33,0.00019178,2]
[315370082,1708992641049,-861.33,0.00019178,2]
[315370084,1708992641058,-500.0,0.00019178,2]
[315370085,1708992641067,-2705.82,0.00019178,2]
[315370087,1708992641076,-500.0,0.00019178,2]
[315370089,1708992641085,-500.0,0.00019178,2]
[315370090,1708992641095,-500.0,0.00019178,2]
[315370091,1708992641104,-500.0,0.00019178,2]
[315370092,1708992641114,-500.0,0.00019178,2]
[315370093,1708992641123,-500.0,0.00019178,2]
[315370094,1708992641132,-597.76,0.00019178,2]
[315370095,1708992641142,-500.0,0.00019178,2]
[315370096,1708992641151,-500.0,0.00019178,2]
[315370097,1708992641160,-500.0,0.00019178,2]
[315370098,1708992641169,-1863.07,0.00019178,2]
[315370099,1708992641179,-395.92,0.00019178,2]
[315370100,1708992641188,-500.0,0.00019178,2]
[315370101,1708992641197,-500.0,0.00019178,2]
[315370102,1708992641207,-500.0,0.00019178,2]
[315370103,1708992641216,-500.0,0.00019178,2]
[315370104,1708992641225,-2065.8,0.00019178,2]
[315370105,1708992641234,-168.152718,0.00019178,2]
[315370106,1708992641244,-168.810606,0.00019178,2]
[315370107,1708992641253,-166.666666,0.00019178,2]
[315370108,1708992641262,-153.0,0.000192,2]
[315370109,1708992641272,-3092.35485808,0.00019352,2]
[315370110,1708992641282,-653.63793708,0.00019425,2]
[315370111,1708992641292,-500.0,0.00019451,2]
[315370112,1708992641302,-500.0,0.00019451,2]
[315370113,1708992641311,-500.0,0.00019451,2]
[315370114,1708992641322,-500.0,0.00019451,2]
[315370115,1708992641337,-500.0,0.00019451,2]
[315370116,1708992641348,-999.7924886,0.00019451,2]
[315370117,1708992641359,-1519.07055314,0.00019451,2]
[315370118,1708992641369,-861.33,0.00019451,2]
[315370119,1708992641379,-861.33,0.00019451,2]
[315370120,1708992641388,-861.33,0.00019451,2]
[315370121,1708992641397,-646.47874491,0.00019452,2]
[315370122,1708992641406,-500.70616589,0.00019452,2]
[315370123,1708992641415,-501.86045569,0.00019452,2]
[315370124,1708992641424,-500.0,0.00019452,2]
[315370125,1708992641433,-501.52917803,0.00019452,2]
[315370126,1708992641442,-574.29,0.00019452,2]
[315370127,1708992641451,-500.0,0.00019452,2]
[315370128,1708992641464,-571.63134775,0.00019452,2]
[315370129,1708992641473,-501.10627301,0.00019452,2]
[315370130,1708992641482,-500.0,0.00019452,2]
[315370131,1708992641491,-500.0,0.00019452,2]
[315370132,1708992641499,-449.10144349,0.00019452,2]
[315370133,1708992641509,-500.0,0.00019452,2]
[315370134,1708992641518,-500.0,0.00019452,2]
[315370135,1708992641528,-500.0,0.00019452,2]
[315370136,1708992641537,-500.0,0.00019452,2]
[315370137,1708992641545,-500.0,0.00019452,2]
[315370138,1708992641554,-500.0,0.00019452,2]
[315370139,1708992641564,-500.0,0.00019452,2]
[315370140,1708992641573,-1263.81,0.00019452,2]
[315370141,1708992641583,-500.0,0.00019452,2]
[315370142,1708992641592,-500.0,0.00019452,2]
[315370143,1708992641601,-500.0,0.00019452,2]
[315370144,1708992641610,-569.02009229,0.00019452,2]
[315370145,1708992641620,-500.0,0.00019452,2]
[315370146,1708992641629,-500.0,0.00019452,2]
[315370147,1708992641638,-500.0,0.00019452,2]
[315370148,1708992641647,-500.0,0.00019452,2]
[315370149,1708992641657,-500.0,0.00019452,2]
[315370150,1708992641666,-500.0,0.00019452,2]
[315370151,1708992641675,-500.0,0.00019452,2]
[315370152,1708992641684,-405.80118565,0.00019452,2]
[315370153,1708992641693,-500.0,0.00019452,2]
[315370154,1708992641703,-500.0,0.00019452,2]
[315370155,1708992641712,-500.0,0.00019452,2]
[315370156,1708992641722,-3226.67,0.00019452,2]
[315370157,1708992641731,-536.28,0.00019452,2]
[315370158,1708992641741,-1303.69,0.00019452,2]
[315370159,1708992641750,-500.0,0.00019452,2]
[315370160,1708992641759,-1352.38,0.00019452,2]
[315370161,1708992641768,-500.0,0.00019452,2]
[315370162,1708992641778,-500.0,0.00019452,2]
[315370163,1708992641786,-2042.42,0.00019452,2]
[315370164,1708992641795,-306.73743767,0.00019452,2]
[315370165,1708992641804,-500.0,0.00019452,2]
[315370166,1708992641813,-500.0,0.00019452,2]
[315370167,1708992641822,-500.0,0.00019452,2]
[315370168,1708992641831,-200.0,0.00019452,2]
[315370169,1708992641840,-752.08,0.00019452,2]
[315370170,1708992641850,-500.0,0.00019452,2]
[315370171,1708992641859,-500.0,0.00019452,2]
[315370172,1708992641868,-500.0,0.00019452,2]
[315370173,1708992641877,-429.14374354,0.00019452,2]
[315370174,1708992641887,-500.0,0.00019452,2]
[315370175,1708992641896,-500.0,0.00019452,2]
[315370176,1708992641905,-500.0,0.00019452,2]
[315370177,1708992641915,-500.0,0.00019452,2]
[315370178,1708992641924,-500.0,0.00019452,2]
[315370179,1708992641934,-500.0,0.00019452,2]
[315370180,1708992641945,-500.0,0.00019452,2]
[315370181,1708992641955,-500.0,0.00019452,2]
[315370182,1708992641964,-501.23926151,0.00019452,2]
[315370183,1708992641973,-501.25122817,0.00019452,2]
[315370184,1708992641983,-500.0,0.00019452,2]
[315370185,1708992641992,-418.52836242,0.00019452,2]
[315370186,1708992642002,-500.0,0.00019452,2]
[315370187,1708992642011,-500.0,0.00019452,2]
[315370188,1708992642021,-500.0,0.00019452,2]
[315370189,1708992642030,-500.0,0.00019452,2]
[315370190,1708992642039,-500.0,0.00019452,2]
[315370191,1708992642048,-417.97011128,0.00019452,2]
[315370192,1708992642057,-500.0,0.00019452,2]
[315370193,1708992642067,-576.01,0.00019452,2]
[315370194,1708992642076,-500.0,0.00019452,2]
[315370195,1708992642085,-500.0,0.00019452,2]
[315370196,1708992642095,-500.0,0.00019452,2]
[315370197,1708992642104,-497.00174819,0.00019452,2]
[315370198,1708992642114,-500.0,0.00019452,2]
[315370199,1708992642123,-500.0,0.00019452,2]
[315370200,1708992642133,-500.0,0.00019452,2]
[315370201,1708992642143,-500.0,0.00019452,2]
[315370202,1708992642152,-500.0,0.00019452,2]
[315370203,1708992642161,-500.0,0.00019452,2]
[315370204,1708992642171,-500.73988973,0.00019452,2]
[315370205,1708992642180,-500.0,0.00019452,2]
[315370206,1708992642189,-500.0,0.00019452,2]
[315370207,1708992642198,-500.0,0.00019452,2]
[315370208,1708992642207,-500.0,0.00019452,2]
[315370209,1708992642217,-501.0634752,0.00019452,2]
[315370210,1708992642226,-500.0,0.00019452,2]
[315370211,1708992642236,-2198.83,0.00019452,2]
[315370212,1708992642245,-500.0,0.00019452,2]
[315370213,1708992642255,-500.0,0.00019452,2]
[315370214,1708992642264,-1625.24,0.00019452,2]
[315370215,1708992642274,-500.0,0.00019452,2]
[315370216,1708992642283,-500.0,0.00019452,2]
[315370218,1708992642293,-500.0,0.00019452,2]
[315370219,1708992642303,-470.0,0.00019452,2]
[315370221,1708992642312,-1300.41,0.00019452,2]
[315370222,1708992642322,-500.0,0.00019452,2]
[315370223,1708992642331,-500.0,0.00019452,2]
[315370224,1708992642340,-500.0,0.00019452,2]
[315370225,1708992642349,-500.0,0.00019452,2]
[315370226,1708992642358,-500.0,0.00019452,2]
[315370228,1708992642367,-500.0,0.00019452,2]
[315370230,1708992642376,-500.0,0.00019452,2]
[315370232,1708992642385,-500.0,0.00019452,2]
[315370233,1708992642394,-500.0,0.00019452,2]
[315370235,1708992642403,-329.06892386,0.00019452,2]
[315370237,1708992642413,-500.0,0.00019452,2]
[315370239,1708992642422,-500.0,0.00019452,2]
[315370240,1708992642431,-500.0,0.00019452,2]
[315370241,1708992642441,-500.0,0.00019452,2]
[315370242,1708992642450,-500.0,0.00019452,2]
[315370243,1708992642459,-500.0,0.00019452,2]
[315370244,1708992642469,-907.39,0.00019452,2]
[315370245,1708992642479,-500.0,0.00019452,2]
[315370246,1708992642488,-500.0,0.00019452,2]
[315370248,1708992642497,-500.0,0.00019452,2]
[315370249,1708992642506,-500.0,0.00019452,2]
[315370250,1708992642515,-500.0,0.00019452,2]
[315370251,1708992642525,-500.0,0.00019452,2]
[315370253,1708992642534,-500.0,0.00019452,2]
[315370254,1708992642543,-500.0,0.00019452,2]
[315370255,1708992642552,-500.0,0.00019452,2]
[315370256,1708992642561,-1106.32,0.00019452,2]
[315370257,1708992642571,-500.0,0.00019452,2]
[315370258,1708992642580,-3645.04,0.00019452,2]
[315370259,1708992642589,-1431.7,0.00019452,2]
[315370260,1708992642598,-500.0,0.00019452,2]
[315370261,1708992642607,-865.79,0.00019452,2]
[315370262,1708992642617,-949.56,0.00019452,2]
[315370263,1708992642626,-500.0,0.00019452,2]
[315370264,1708992642636,-500.0,0.00019452,2]
[315370265,1708992642645,-659.55,0.00019452,2]
[315370266,1708992642655,-500.0,0.00019452,2]
[315370267,1708992642664,-500.0,0.00019452,2]
[315370268,1708992642674,-11020.62,0.00019452,2]
[315370269,1708992642683,-500.35866528,0.00019452,2]
[315370270,1708992642692,-500.0,0.00019452,2]
[315370271,1708992642702,-509.02416271,0.00019452,2]
[315370272,1708992642712,-1715.46,0.00019452,2]
[315370273,1708992642731,-500.0,0.00019452,2]
[315370274,1708992642740,-3554.77,0.00019452,2]
[315370275,1708992642749,-500.0,0.00019452,2]
[315370276,1708992642758,-502.11470017,0.00019452,2]
[315370277,1708992642767,-500.0,0.00019452,2]
[315370278,1708992642777,-500.0,0.00019452,2]
[315370279,1708992642786,-500.0,0.00019452,2]
[315370280,1708992642795,-500.0,0.00019452,2]
[315370281,1708992642804,-500.0,0.00019452,2]
[315370282,1708992642814,-2853.03,0.00019452,2]
[315370283,1708992642823,-1894.86,0.00019452,2]
[315370284,1708992642832,-2054.17,0.00019452,2]
[315370285,1708992642841,-414.86935589,0.00019452,2]
[315370286,1708992642850,-500.0,0.00019452,2]
[315370287,1708992642859,-500.0,0.00019452,2]
[315370288,1708992642869,-500.0,0.00019452,2]
[315370289,1708992642879,-500.0,0.00019452,2]
[315370290,1708992642964,-504.22081806,0.00019452,2]
[315370291,1708992642973,-500.0,0.00019452,2]
[315370292,1708992642983,-500.0,0.00019452,2]
[315370293,1708992642994,-500.0,0.00019452,2]
[315370294,1708992643003,-1000.0,0.00019452,2]
[315370295,1708992643013,-17851.83,0.00019452,2]
[315370296,1708992643025,-1000.0,0.00019452,2]
[315370297,1708992643035,-500.0,0.00019452,2]
[315370298,1708992643045,-500.0,0.00019452,2]
[315370299,1708992643055,-2560.44,0.00019452,2]
[315370300,1708992643064,-500.0,0.00019452,2]
[315370301,1708992643073,-536.17501023,0.00019452,2]
[315370302,1708992643084,-500.0,0.00019452,2]
[315370303,1708992643093,-500.0,0.00019452,2]
[315370304,1708992643103,-500.0,0.00019452,2]
[315370305,1708992643113,-501.52534223,0.00019452,2]
[315370306,1708992643123,-500.0,0.00019452,2]
[315370307,1708992643134,-500.0,0.00019452,2]
[315370308,1708992643143,-501.85263397,0.00019452,2]
[315370309,1708992643154,-500.0,0.00019452,2]
[315370310,1708992643163,-500.0,0.00019452,2]
[315370311,1708992643172,-1573.46,0.00019452,2]
[315370312,1708992643182,-500.0,0.00019452,2]
[315370313,1708992643191,-500.0,0.00019452,2]
[315370314,1708992643201,-500.0,0.00019452,2]
[315370315,1708992643211,-500.0,0.00019452,2]
[315370316,1708992643220,-500.0,0.00019452,2]
[315370317,1708992643229,-7320.56,0.00019452,2]